Cogmind - Beta 16.1 @@@ ROGUE MODE // 2026.02.10 @ 17:32:47 Player: Fantastic Ms. Fox Result: Destroyed by S-27 Virus with Autogun Performance ------------- Evolutions (3) 1500 Regions Visited (6) 1200 Robots Destroyed (47) 235 Value Destroyed (1249) 1249 Prototype IDs (8) 160 Alien Tech Used (0) 0 Bonus (0) 0 TOTAL SCORE: 4344 Bonus ------- None Cogmind --------- Core Integrity 0/700 Matter 280/300 Energy 70/100 System Corruption 0% Temperature Cool (0) Movement Core (50) Location -7/Lower Caves Parts ------- > --- POWER (3) -------- (None) > --- PROPULSION (4) --- (None) > --- UTILITY (4) ------ Structural Scanner Visual Processing Unit Improved Terrain Scanner Makeshift System Shield > --- WEAPON (2) ------- (None) > --- INVENTORY (5) ---- Improved Signal Interpreter Peak State ------------ > --- POWER ------------ Light Nuclear Core > --- PROPULSION ------- Armored Treads Makeshift Flight Unit > --- UTILITY ---------- Weight Redist. System Visual Processing Unit Improved Terrain Scanner > --- WEAPON ----------- Gatling Laser Makeshift Shrapnel Gun > --- INVENTORY -------- Improved Deuterium Engine Heat Sink Structural Scanner Improved Signal Interpreter Makeshift System Shield [Rating: 26] Favorites ----------- Power Light Ion Engine Engine Light Ion Engine Power Core Light Nuclear Core Propulsion Aluminum Leg Treads Armored Treads Leg Aluminum Leg Hover Unit Aerolev Unit Flight Unit Makeshift Flight Unit Utility Small Storage Unit Device Improved Terrain Scanner Storage Small Storage Unit Processor Visual Processing Unit Hackware Makeshift System Shield Weapon Light Assault Rifle Energy Gun Gatling Laser Ballistic Gun Light Assault Rifle Launcher Improved Grenade Launcher Build | -11 -10 -9 -8 -7 -7 -7 ------- Run | Yrd Mat Mat Mat Fac Low Low Slots Evolved 6 | . . 2 2 2 . . Power 2 | . . 1 . 1 . . Propulsion 2 | . . 1 1 . . . Utility 2 | . . . 1 1 . . Weapon . | . . . . . . . Parts Attached 57 | 7 6 11 14 6 9 4 Power 14 | 1 2 2 5 . 2 2 Engine 11 | 1 2 2 5 . 1 . Core 3 | . . . . . 1 2 Reactor . | . . . . . . . Propulsion 20 | 2 2 6 4 2 4 . Treads 2 | . . . . . 2 . Leg 12 | 2 2 4 2 1 1 . Wheel . | . . . . . . . Hover 4 | . . 2 1 1 . . Flight 2 | . . . 1 . 1 . Utility 12 | 1 1 2 2 3 1 2 Device 8 | . 1 1 2 2 1 1 Storage 1 | 1 . . . . . . Processor 2 | . . 1 . 1 . . Hackware 1 | . . . . . . 1 Protection . | . . . . . . . Artifact . | . . . . . . . Weapon 11 | 3 1 1 3 1 2 . Energy Gun 2 | . . . 1 . 1 . Energy Cannon . | . . . . . . . Ballistic Gun 7 | 3 . 1 2 . 1 . Ballistic Cannon . | . . . . . . . Launcher 2 | . 1 . . 1 . . Special Weapon . | . . . . . . . Impact Weapon . | . . . . . . . Slashing Weapon . | . . . . . . . Piercing Weapon . | . . . . . . . Special Melee Weapon . | . . . . . . . Unidentified Prototypes . | . . . . . . . Parts Lost 46 | . 6 7 8 8 8 9 Power 12 | . 2 1 3 2 1 3 Propulsion 16 | . 2 3 1 4 4 2 Utility 7 | . . 2 . 1 2 2 Weapon 11 | . 2 1 4 1 1 2 Highest Loss Streak 9 | . 2 2 5 7 4 9 To Critical Strikes . | . . . . . . . Average Backups 5 | 4 7 6 7 4 4 4 Power . | . 1 . . . . . Propulsion 2 | 3 3 2 2 . . . Utility 2 | . . 1 3 3 3 3 Weapon . | . 1 1 1 . . . Tool/Special . | . . . . . . . Unused Backups 7 | . 6 . . . . 1 Power . | . . . . . . . Propulsion 4 | . 4 . . . . . Utility 1 | . . . . . . 1 Weapon 2 | . 2 . . . . . Tool/Special . | . . . . . . . Average Slot Usage (%) 73 | . 92 89 81 55 50 56 Engine 10 | . 13 18 14 8 1 . Treads 1 | . . . . . 3 6 Leg 12 | . 28 22 1 7 1 . Hover 6 | . . 6 22 6 2 . Flight 1 | . . . . . 2 6 Device 12 | . 11 6 7 10 19 15 Storage 7 | . 14 11 9 3 . . Processor 5 | . . 4 9 14 7 7 Energy Gun 1 | . . . 1 . 2 6 Ballistic Gun 12 | . 22 18 15 3 2 6 Launcher 1 | . 1 . . . 2 . Peak Build Rating 26 | 6 7 15 23 24 24 26 Average Rating 14 | 3 6 10 18 17 20 23 On Entrance 13 | . 6 6 15 23 19 23 Avg Prop Armor Cover (%) 6 | . . . 9 13 5 2 Naked Turns . | . . . . . . . Heaviest Build 19 | 12 14 17 19 19 13 16 Greatest Support 30 | 20 20 30 22 20 22 20 Greatest Overweight (x) 4 | 3 . 1 1 3 4 3 Average Overweight (x) . | . . . . . . . Largest Inventory Capacity 8 | 8 8 8 8 8 5 5 Average Capacity 6 | 6 8 8 8 6 5 5 Most Carried 8 | 6 8 8 8 5 5 5 Average Carried 5 | 4 7 6 7 4 4 4 Final Capacity 8 | 8 8 8 8 5 5 5 Final Carried 8 | 6 6 8 5 4 5 1 Class Distribution -------------------- 83% | Mutant 16% | Scavenger-Mutant Dominant Class ---------------- Mutant | -10/Materials Mutant | -9/Materials Mutant | -8/Materials Mutant | -7/Factory Mutant | -7/Lower Caves Mutant | -7/Lower Caves Resources | -11 -10 -9 -8 -7 -7 -7 ----------- Run | Yrd Mat Mat Mat Fac Low Low Matter Collected 1105 | 254 249 188 111 35 233 35 Remotely . | . . . . . . . Salvage Created 1283 | . 258 340 423 . 153 109 Parts 87 | . 14 33 22 . 7 11 Haulers Intercepted . | . . . . . . . Recyclers Shooed 3 | 1 1 . 1 . . . Parts Field Recycled . | . . . . . . . Retrieved Matter . | . . . . . . . Parts Self-Destructed 14 | . . . . . 5 9 Prevented . | . . . . . . . Parts Restored . | . . . . . . . Kills | -11 -10 -9 -8 -7 -7 -7 ------- Run | Yrd Mat Mat Mat Fac Low Low Combat Hostiles Destroyed 42 | . 8 13 8 . 9 4 Guns 29 | . 6 11 8 . . 4 AOE 13 | . 2 2 . . 9 . Classes Destroyed 6 | . 3 2 . . 1 . Recycler 2 | . . 1 1 . . . Watcher 3 | . 1 1 1 . . . Swarmer 24 | . 3 10 3 . 5 3 Grunt 11 | . 5 2 3 . 1 . Brawler 2 | . . . . . 2 . Sentry 5 | . . 1 2 . 1 1 Best Kill Streak 9 | . 4 9 6 . 9 3 Combat Bots Only 9 | . 3 7 3 . 9 3 Max Kills in Single Turn 3 | . 2 2 1 . 3 1 Gunslinging . | . . . . . . . Exploded 3 | . 1 2 . . 3 . Melee . | . . . . . . . Uniques/NPCs Destroyed . | . . . . . . . Combat | -11 -10 -9 -8 -7 -7 -7 -------- Run | Yrd Mat Mat Mat Fac Low Low Hostile Shots Fired 480 | . 84 108 78 63 73 74 Missed 154 | . 19 32 26 17 40 20 Hits 326 | . 65 76 52 46 33 54 Projectile 326 | . 65 76 52 46 33 54 Critical Strikes 3 | . 1 . . 1 1 . Damage Taken 4498 | . 863 675 718 728 660 854 Core 1135 | . 199 136 89 216 187 308 Absorbed by Shields 98 | . . 98 . . . . Core Remaining (%) 67 | 100 20 66 83 . . . Volleys Fired 142 | . 50 29 43 2 11 7 Largest 2 | . 2 2 2 1 1 2 Hottest 104 | . 40 40 60 20 36 104 Shots Fired 258 | . 93 55 85 2 11 12 Gun 244 | . 91 54 85 2 . 12 Cannon . | . . . . . . . Launcher 14 | . 2 1 . . 11 . Special . | . . . . . . . Kinetic 213 | . 91 54 61 2 . 5 Thermal 31 | . . . 24 . . 7 Explosive 14 | . 2 1 . . 11 . Electromagnetic . | . . . . . . . Robot Hit Streak 28 | . 7 11 28 2 11 17 Robot Miss Streak 5 | . 5 3 2 . 2 4 Penetration Max . | . . . . . . . Secondary Targets 2 | . . . 1 . . 1 Max Gunslinging Chain 1 | . . . 1 . . 1 Shots Hit Robots 190 | . 67 33 69 2 9 10 Core Hits 107 | . 18 22 28 4 24 11 Critical Kills . | . . . . . . . Critical Parts Destroyed 1 | . 1 . . . . . Critical Strikes 1 | . 1 . . . . . Destroy 1 | . 1 . . . . . Melee Attacks . | . . . . . . . Impact . | . . . . . . . Slashing . | . . . . . . . Piercing . | . . . . . . . Sneak Attacks . | . . . . . . . Combat Hostiles . | . . . . . . . Follow-up Attacks . | . . . . . . . Damage Inflicted 3209 | . 946 394 632 25 987 225 Guns 1891 | . 757 283 612 16 . 223 Cannons . | . . . . . . . Explosions 1259 | . 174 98 . . 987 . Melee . | . . . . . . . Ramming 59 | . 15 13 20 9 . 2 Kinetic 1493 | . 757 283 379 16 . 58 Thermal 398 | . . . 233 . . 165 Explosive 1259 | . 174 98 . . 987 . Electromagnetic . | . . . . . . . Impact . | . . . . . . . Slashing . | . . . . . . . Piercing . | . . . . . . . Highest Corruption . | . . . . . . . Average Corruption . | . . . . . . . Corruption Purged . | . . . . . . . Corruption Blocked . | . . . . . . . Overload Shots . | . . . . . . . Overflow Damage 33 | . 9 . . . 24 . Projectiles . | . . . . . . . Explosions 33 | . 9 . . . 24 . Melee . | . . . . . . . Knockbacks . | . . . . . . . Impact . | . . . . . . . Kinetic . | . . . . . . . Secondary . | . . . . . . . Self-Inflicted Damage 132 | . 43 . 10 . 78 1 Shots 4 | . 2 . . . 2 . Rammed 2 | . . . 1 . . 1 Targets Rammed 15 | 1 4 1 1 7 . 1 Kicked 13 | 1 4 1 . 7 . . Crushed . | . . . . . . . Highest Temperature 42 | . 25 16 6 . . 42 Average Temperature 7 | . 8 4 3 . . 15 Received Heat Transfer 1313 | . 432 92 225 432 84 48 Siege Activations . | . . . . . . . Martial Activations . | . . . . . . . Shielding Activations . | . . . . . . . Robots Disrupted . | . . . . . . . Combat Hostiles . | . . . . . . . Robots Corrupted . | . . . . . . . Combat Hostiles . | . . . . . . . Parts Fried . | . . . . . . . Impact Corruptions . | . . . . . . . Robots Melted . | . . . . . . . Combat Hostiles . | . . . . . . . Parts Melted 1 | . . . 1 . . . Heat Transferred 900 | . . . 525 . . 375 Parts Sabotaged . | . . . . . . . Parts Stolen . | . . . . . . . Parts Stripped . | . . . . . . . Power Chain Reactions . | . . . . . . . Alert | -11 -10 -9 -8 -7 -7 -7 ------- Run | Yrd Mat Mat Mat Fac Low Low Maximum Alert Level . | . . . . . . . Low Security (%) 100 | 100 100 100 100 100 . . Level 1 . | . . . . . . . Level 2 . | . . . . . . . Level 3 . | . . . . . . . Level 4 . | . . . . . . . Level 5 . | . . . . . . . High Security . | . . . . . . . Max Security . | . . . . . . . Peak Influence 180 | . 96 180 140 45 . . Initial 43 | . . . 33 43 . . Average 45 | . 30 76 49 13 . . Influence Increases 1338 | . 261 366 352 69 210 80 Destroy 0b10 Robot/C 840 | . 160 260 160 . 180 80 Destroy 0b10 Robot/NC 25 | . 5 10 10 . . . Destroy Leader 116 | . 32 42 42 . . . Successful Hack 79 | . 5 15 35 24 . . Destroy Structure 23 | . 14 9 . . . . Partial Spotted 45 | . . . 45 . . . Lose Combat Pursuer 210 | . 45 30 60 45 30 . Influence Decreases 1338 | . 261 285 337 130 245 80 Entered New Map 115 | . . . 48 53 14 . Time Decay 910 | . 210 225 209 50 156 60 Lost Part 288 | . 51 60 80 27 50 20 Lost Ally 25 | . . . . . 25 . Squads Dispatched 7 | . . 2 3 2 . . Investigation 3 | . . . 1 2 . . Extermination . | . . . . . . . Reinforcement 2 | . . 2 . . . . Assault . | . . . . . . . Garrison 2 | . . . 2 . . . Intercept . | . . . . . . . Searches Triggered . | . . . . . . . Construction Impeded . | . . . . . . . Haulers Reinforced . | . . . . . . . Active Scanning Responses . | . . . . . . . Cargo Convoy Interrupts . | . . . . . . . Stealth | -11 -10 -9 -8 -7 -7 -7 --------- Run | Yrd Mat Mat Mat Fac Low Low Distress Signals 6 | . . 2 4 . . . Communications Jammed . | . . . . . . . Distress Signals . | . . . . . . . Times Spotted 88 | . 15 27 16 6 11 13 Peak Tracking Total 12 | . 4 7 9 4 9 12 Tactical Retreats 10 | . 3 2 2 1 2 . Traps | -11 -10 -9 -8 -7 -7 -7 ------- Run | Yrd Mat Mat Mat Fac Low Low Traps Triggered . | . . . . . . . Indirectly . | . . . . . . . Trap Hack Attempts . | . . . . . . . Triggered . | . . . . . . . Disarmed . | . . . . . . . Reprogrammed . | . . . . . . . Reused . | . . . . . . . Traps Extracted . | . . . . . . . Installed . | . . . . . . . Triggered . | . . . . . . . Machines | -11 -10 -9 -8 -7 -7 -7 ---------- Run | Yrd Mat Mat Mat Fac Low Low Machines Disabled 1 | . . . . . 1 . Max in Single Turn 1 | . . . . . 1 . Machines Repaired . | . . . . . . . Machines Dismantled . | . . . . . . . Machines Sabotaged . | . . . . . . . Overloaded Fab Kills . | . . . . . . . Hacking | -11 -10 -9 -8 -7 -7 -7 --------- Run | Yrd Mat Mat Mat Fac Low Low Machines Accessed 24 | . 4 6 10 4 . . Terminals 14 | . 3 4 6 1 . . Fabricators 1 | . . . . 1 . . Repair Stations 2 | . 1 . 1 . . . Recycling Units 2 | . . 1 . 1 . . Scanalyzers 4 | . . 1 2 1 . . Garrison Access 1 | . . . 1 . . . Total Hacks 56 | . 6 14 26 10 . . Successful 28 | . 1 10 12 5 . . Failed 27 | . 5 3 14 5 . . Catastrophic 4 | . 1 1 1 1 . . Database Lockouts 1 | . . 1 . . . . Manual 3 | . . 2 1 . . . Terminals 30 | . 4 7 17 2 . . Fabricators 4 | . . . . 4 . . Repair Stations 3 | . 2 . 1 . . . Recycling Units 8 | . . 5 . 3 . . Scanalyzers 8 | . . 2 5 1 . . Garrison Access 3 | . . . 3 . . . Terminal Hacks 12 | . 1 5 6 . . . Robot Analysis 1 | . . . 1 . . . Prototype ID Bank 4 | . 1 1 2 . . . Branch Access Points 1 | . . 1 . . . . Emergency Access Points 1 | . . 1 . . . . Alert Level 2 | . . . 2 . . . Locate Traps 1 | . . 1 . . . . Recall Reinforcements 1 | . . 1 . . . . Registered Components 1 | . . . 1 . . . Fabricator Hacks 3 | . . . . 3 . . Network Status 1 | . . . . 1 . . Load Schematic 1 | . . . . 1 . . Build 1 | . . . . 1 . . Repair Station Hacks 1 | . . . 1 . . . Scan Component 1 | . . . 1 . . . Recycling Unit Hacks 5 | . . 4 . 1 . . Process 2 | . . 2 . . . . Report Inventory 2 | . . 1 . 1 . . Retrieve Matter 1 | . . 1 . . . . Scanalyzer 6 | . . 1 4 1 . . Insert Component 2 | . . . 2 . . . Analyze 1 | . . . 1 . . . Retrieve Study 3 | . . 1 1 1 . . Garrison Access Hacks 1 | . . . 1 . . . Coupler Status 1 | . . . 1 . . . Unauthorized Hacks . | . . . . . . . Terminals . | . . . . . . . Fabricators . | . . . . . . . Repair Stations . | . . . . . . . Recycling Units . | . . . . . . . Scanalyzers . | . . . . . . . Garrison Access . | . . . . . . . Data Cores Recovered . | . . . . . . . Used . | . . . . . . . Hacking Detections 18 | . 2 3 9 4 . . Full Trace Events 3 | . . . 1 2 . . Feedback Events . | . . . . . . . Feedback Blocked . | . . . . . . . Robot Schematics Acquired . | . . . . . . . Robots Built . | . . . . . . . Authchips . | . . . . . . . Time . | . . . . . . . Total Robot Build Rating . | . . . . . . . Part Schematics Acquired 1 | . . . 1 . . . Parts Built 1 | . . . . 1 . . Authchips . | . . . . . . . Time 116 | . . . . 116 . . Total Part Build Rating 3 | . . . . 3 . . Part Studies Acquired 3 | . . 1 1 1 . . Parts Repaired . | . . . . . . . Time . | . . . . . . . Parts Recycled . | . . . . . . . Recycled Matter 53 | . . 53 . . . . Retrieved Matter 53 | . . 53 . . . . Retrieved Components . | . . . . . . . Parts Scanalyzed 1 | . . . 1 . . . Part Schematics Acquired 1 | . . . 1 . . . Parts Damaged 1 | . . . 1 . . . Bothacking | -11 -10 -9 -8 -7 -7 -7 ------------ Run | Yrd Mat Mat Mat Fac Low Low Used RIF Installer . | . . . . . . . Robots Hacked . | . . . . . . . Non-combat . | . . . . . . . Combat . | . . . . . . . Robot Hacks Applied . | . . . . . . . Relay Couplers Released . | . . . . . . . Fabnet Peak Effective % . | . . . . . . . Robots Rewired 2 | . . . . . 2 . Allies Hacked . | . . . . . . . Hacks Repelled . | . . . . . . . Allies | -11 -10 -9 -8 -7 -7 -7 -------- Run | Yrd Mat Mat Mat Fac Low Low Total Allies 3 | . . . . . 2 1 Largest Group 2 | . . . . . 2 1 Highest-Rated Group 106 | . . . . . 52 106 Highest-Rated Ally 106 | . . . . . 32 106 Total Orders . | . . . . . . . Ally Attacks 4 | . . . . . 4 . Total Damage 192 | . . . . . 192 . Kills . | . . . . . . . Allies Corrupted . | . . . . . . . Allies Melted . | . . . . . . . Intel | -11 -10 -9 -8 -7 -7 -7 ------- Run | Yrd Mat Mat Mat Fac Low Low Active Infowar (turns) 1846 | . 529 186 . 234 726 171 Optics 1131 | . . . . 234 726 171 Terrain 785 | . 529 186 . 69 1 . Structural 3 | . . . . . . 3 Robot Analysis Total 1 | . . . 1 . . . Derelict Logs Recovered 2 | . . . . . 2 . Drone Launches . | . . . . . . . Drone Recoveries . | . . . . . . . Exploration | -11 -10 -9 -8 -7 -7 -7 ------------- Run | Yrd Mat Mat Mat Fac Low Low Turns Passed 2871 | 66 621 601 452 234 726 171 Spaces Moved 2042 | 45 301 574 384 176 477 85 Core 176 | 23 . . . 64 83 6 Treads 332 | . . . . . 253 79 Legs 838 | 22 301 242 33 112 128 . Wheels . | . . . . . . . Hover 683 | . . 332 351 . . . Flight 13 | . . . . . 13 . Fastest Speed 45 | 50 120 46 45 50 50 50 Average Speed 100 | 105 120 74 52 113 142 163 Slowest Speed 250 | 200 120 120 106 200 250 200 Overloaded Moves . | . . . . . . . Propulsion Burnouts . | . . . . . . . Robots Hopped . | . . . . . . . Potential Cave-ins . | . . . . . . . Cave-ins Triggered . | . . . . . . . Exploration Rate (%) 35 | 4 50 46 41 3 88 16 Regions Visited 6 Branch Regions 2 Pre-discovered Areas . | . . . . . . . Known Exits Taken . | . . . . . . . Unknown Exits Taken 6 | 1 1 1 1 1 1 . Scrap Searched 5 | . . . . . 5 . Spaces Dug . | . . . . . . . Terrain Destroyed 57 | . 11 9 . . 37 . Melee . | . . . . . . . Projectile . | . . . . . . . AOE 57 | . 11 9 . . 37 . Terrain Rammed . | . . . . . . . Walls Destroyed . | . . . . . . . Machines Disabled . | . . . . . . . Actions | -11 -10 -9 -8 -7 -7 -7 --------- Run | Yrd Mat Mat Mat Fac Low Low Total 2606 | 59 474 700 558 204 510 101 Wait 287 | . 91 71 111 11 3 . Move 2036 | 44 300 573 383 175 476 85 Hop . | . . . . . . . Pick Up 36 | 6 13 10 3 2 2 . Fast Attach 29 | 7 1 4 5 3 7 2 Attach 31 | . 7 8 7 3 2 4 Detach 3 | . . 1 . 1 1 . Swap 2 | . . . 2 . . . Drop 15 | 1 8 3 3 . . . Fire 142 | . 50 29 43 2 11 7 Melee . | . . . . . . . Ram 2 | . . . 1 . . 1 Kick 13 | 1 4 1 . 7 . . Crush . | . . . . . . . Escape Stasis . | . . . . . . . Rewire 10 | . . . . . 8 2 Trap . | . . . . . . . Miscellaneous . | . . . . . . . Route ------- -11/Scrapyard -10/Materials -9/Materials (discovered 2 exits: *Mat / *Min) -8/Materials -7/Factory -7/Lower Caves -7/Lower Caves (discovered 1 exit: [*Fac]) History --------- Turn | Location | Event 2 | -11/Scrapyard | Met Revision 17 17 | -11/Scrapyard | Discovered new exit (range 15) 67 | -11/Scrapyard | Entered Materials 304 | -10/Materials | Build established: Mutant 456 | -10/Materials | Core integrity fell below 50% 567 | -10/Materials | Derelicts attacked the area 600 | -10/Materials | Discovered new exit (range 15) 688 | -10/Materials | Entered another Materials area 688 | -9/Materials | Evolved 2 slots: Power x1, Propulsion x1 744 | -9/Materials | Identified exit to Mines 961 | -9/Materials | Central database locked down 1087 | -9/Materials | Destroyed 7 combat bots 1277 | -9/Materials | Discovered new exit (range 14) 1289 | -9/Materials | Entered another Materials area 1289 | -8/Materials | Evolved 2 slots: Propulsion x1, Utility x1 1552 | -8/Materials | Garrison activated, responded to threat 1634 | -8/Materials | Lost 5 parts (2p1n2w) 1737 | -8/Materials | Discovered new exit (range 4) 1741 | -8/Materials | Entered Factory 1741 | -7/Factory | Evolved 2 slots: Power x1, Utility x1 1878 | -7/Factory | Fabricated Aerolev Unit? 1908 | -7/Factory | Lost 7 parts (1p4n1u1w) 1939 | -7/Factory | Discovered new exit (range 18) 1975 | -7/Factory | Entered Lower Caves 1983 | -7/Lower Caves | Learned Factory terminal intel 2041 | -7/Lower Caves | Attracted the attention of an 0b10 outpost 2090 | -7/Lower Caves | Destroyed 9 combat bots 2260 | -7/Lower Caves | Spotted B-75 Beast 2319 | -7/Lower Caves | Lost 4 parts (1p2n1w) 2365 | -7/Lower Caves | Core integrity fell below 50% 2422 | -7/Lower Caves | Learned Factory terminal intel 2555 | -7/Lower Caves | Discovered new exit (range 9) 2701 | -7/Lower Caves | Entered another Lower Caves area 2729 | -7/Lower Caves | Attracted the attention of an 0b10 checkpoint 2780 | -7/Lower Caves | Discovered new exit (range 8) 2852 | -7/Lower Caves | Attracted the attention of an 0b10 base 2866 | -7/Lower Caves | Core integrity fell below 20% 2872 | -7/Lower Caves | Destroyed by S-27 Virus with Autogun Last Messages --------------- S-27 Virus springs to life. Mak. Shrapnel Gun destroyed. Penetrated by Slug. S-27 Virus destroyed. Penetrated by Slug. Lgt. Nuclear Core destroyed. Mak. Flight Unit destroyed. A strange signal echoes through the caves. Gatling Laser destroyed. Acquired Lgt. Nuclear Core. Lgt. Nuclear Core destroyed. Weight Redist. System destroyed. Penetrated by Slug. Arm. Treads destroyed. Heat Sink destroyed. Slammed into S-27 Virus. Imp. Deuterium Engine destroyed. S-27 Virus destroyed. VTOL Module fries itself beyond repair. Autogun fries itself beyond repair. Map ----- +----------------------------------------------------+ | ?????????????????????????????????????????????????? | | ?????????????????????????????????????????????????? | | ?????????????????????????????????????????????????? | | ?????????????????????????????????????????????????? | | ?????????????????????????????????????????????????? | | ?????????????????????????????????????????????????? | | ?????????????????????????????????????????????????? | | ?????????????????????????????????????????????????? | | ??????????????????????#####??????????????????????? | | ??????????????????????######?????????????????????? | | ??????????????????###### ?????????????????????? | | ?????????????????## ## ??????????????????????? | | ???????????????### # #????#++#####??????????? | | ???????????????##^ # # ??? """"??????????? | | ???????????????## # # ?? ??????????? | | ???????????????## ## #""" ???????????? | | ???????????????## ## % # ???????????? | | ???????????????## ## = # $?????????????? | | ????????????????# # """"" +???????? | | ???????????????## # " " +???????? | | ???????????????# ss% #???????? | | ??????#????????# /[ #???????????? | | ###### ?????### #ss# #???????????? | | ###### < # ## ## #???????????? | | ## # #?? #???????????? | | ## ### @# ? #????#???????????? | | ### ######## # ? #????????????????? | | # ???## #????## ##??###????????????????? | | # %?????# #????## ?????????????????????? | | # ???????# #????## ?????????????????????? | | ????????# ##???##### ?? #????????????????? | | ?????????## ##??##### #????????????????? | | ??????????## ######## #?????????????????? | | ???????????# #??????????????????? | | ???????????# #??????????????????? | | ???????????# ### ##??????????????????? | | ???????????## #?????#???????????????????? | | ????????????### #?????????????????????????? | | ???????????##### #?????????????????????????? | | ???????????# #?????????????????????????? | | ???????????# #?????????????????????????? | | ???????????#%%## #????????????????????????? | | ?########### ##### #???????????????????????? | | ?# ## ##???# ??????????????????? | | ?# ## #???? ????????????????? | | ?#" " "" # ##### ????????????????? | | ?#" """ ????????????????? | | ## "" "" ????????????????? | | # " ## ### ?????????????????? | | # """" ### #?? #??# ?????????????????? | +----------------------------------------------------+ Best States ------------- Heat Dissipation 48 Energy Generation 24 Energy Capacity 290 Matter Stores 300 Matter Capacity 300 Sight Range 18 Terrain Scan Range 16 Terrain Scan Density 10 Additional Mass Support 6 Evasion (%) 59 Targeting Accuracy 5 Recoil Reduction 1 Item Schematics ----------------- Aerolev Unit | -8/Materials | Scanalyzed Robot Schematics ------------------ None Fabricated ------------ Aerolev Unit | x1 | -7/Factory Repaired ---------- Nothing Studied --------- Aluminum Leg | -9/Materials | Hacked Lgt. Ion Engine | -8/Materials | Hacked Lgt. Angular Momentum Engine | -7/Factory | Hacked Alien Tech Used ----------------- None Achievements -------------- A New Friend GoHome() Just What I Needed You Again Challenges ------------ None Game ------ Seed ParticleHeartSpiker Manual? 0 Play Time 01:05:52 Cumulative 14.4 hours Start 2026.02.10 @ 16:22:22 End 2026.02.10 @ 17:32:47 Sessions 1 Manual Loads 0 Difficulty Rogue Special Mode None Game No. 12 Rogue 12 Adventurer 0 Explorer 0 Win Type - Total 0 Types 0/0/0/0/0/0/0/0/0/0 Lore% 10 Gallery% 12 Achievement% 12 Wizard Run 0 Options --------- Layout 1 ASCII 0 Keyboard 1 Movement Arrows Keybinds 0 Fullscreen 2 Font 24/Smallcaps Map View 50x35 Zoom Use 0% Tactical HUD 0 Map Filters NONE Filters NONE Steam 1 RUN: a3dbc578-424d-4f9c-86bc-2d19ee3d4674